[Event "Late-Titled-Tuesday-Blitz-February-20-2024"]
[Site "Chess.com"]
[Date "2024.02.20"]
[Round "11"]
[White "dosto07"]
[Black "Teidi96"]
[Result "1-0"]
[WhiteElo "2480"]
[BlackElo "2272"]
[TimeControl "180+1"]
[EndTime "15:59:43 PST"]
[Termination "dosto07 won by resignation"]

1. e4 {[%clk 0:02:55.9]} 1... c5 {[%clk 0:02:59.8]} 2. Nf3 {[%clk 0:02:54.4]}
2... d6 {[%clk 0:03:00.3]} 3. Bb5+ {[%clk 0:02:51.6]} 3... Bd7 {[%clk
0:02:58.8]} 4. Bxd7+ {[%clk 0:02:51.6]} 4... Qxd7 {[%clk 0:02:59.7]} 5. O-O
{[%clk 0:02:51.5]} 5... Nc6 {[%clk 0:02:59.2]} 6. Qe2 {[%clk 0:02:51.6]} 6... e6
{[%clk 0:02:59.3]} 7. c3 {[%clk 0:02:51.9]} 7... Be7 {[%clk 0:02:58.9]} 8. d4
{[%clk 0:02:51.6]} 8... cxd4 {[%clk 0:02:58.8]} 9. cxd4 {[%clk 0:02:51.8]} 9...
Nf6 {[%clk 0:02:59.3]} 10. Nc3 {[%clk 0:02:51.4]} 10... O-O {[%clk 0:02:58.7]}
11. e5 {[%clk 0:02:51.6]} 11... dxe5 {[%clk 0:02:58]} 12. dxe5 {[%clk
0:02:51.8]} 12... Nd5 {[%clk 0:02:56.4]} 13. Nxd5 {[%clk 0:02:49.9]} 13... Qxd5
{[%clk 0:02:55.5]} 14. Rd1 {[%clk 0:02:49.8]} 14... Qa5 {[%clk 0:02:46.4]} 15.
Bd2 {[%clk 0:02:49.7]} 15... Qa4 {[%clk 0:02:36.9]} 16. Bg5 {[%clk 0:02:37.1]}
16... Rfd8 {[%clk 0:02:31.3]} 17. h3 {[%clk 0:02:34.6]} 17... h6 {[%clk
0:02:29.9]} 18. Bxe7 {[%clk 0:02:34.3]} 18... Nxe7 {[%clk 0:02:30.8]} 19. b3
{[%clk 0:02:31.3]} 19... Nd5 {[%clk 0:02:27.3]} 20. bxa4 {[%clk 0:02:30.6]} 1-0

[Event "Late-Titled-Tuesday-Blitz-February-20-2024"]
[Site "Chess.com"]
[Date "2024.02.20"]
[Round "11"]
[White "djano"]
[Black "Taran2004"]
[Result "1-0"]
[WhiteElo "2630"]
[BlackElo "2426"]
[TimeControl "180+1"]
[EndTime "16:00:02 PST"]
[Termination "djano won by resignation"]

1. Nc3 {[%clk 0:03:00.9]} 1... g6 {[%clk 0:02:58.5]} 2. e4 {[%clk 0:02:59.5]}
2... c5 {[%clk 0:02:58.3]} 3. Bc4 {[%clk 0:02:57.6]} 3... Bg7 {[%clk 0:02:58.2]}
4. h4 {[%clk 0:02:58.2]} 4... Nc6 {[%clk 0:02:56.4]} 5. h5 {[%clk 0:02:57.2]}
5... d6 {[%clk 0:02:54.4]} 6. d3 {[%clk 0:02:55.9]} 6... a6 {[%clk 0:02:50.2]}
7. a3 {[%clk 0:02:53.2]} 7... Nf6 {[%clk 0:02:47.8]} 8. Bg5 {[%clk 0:02:39.8]}
8... h6 {[%clk 0:02:27.2]} 9. Bxf6 {[%clk 0:02:38.5]} 9... exf6 {[%clk
0:02:25.5]} 10. hxg6 {[%clk 0:02:37.9]} 10... fxg6 {[%clk 0:02:25.6]} 11. Nge2
{[%clk 0:02:37.1]} 11... b5 {[%clk 0:02:16.5]} 12. Bd5 {[%clk 0:02:36.2]} 12...
Bd7 {[%clk 0:02:16.4]} 13. Nf4 {[%clk 0:02:36.1]} 13... Ne7 {[%clk 0:02:03.9]}
14. Bxa8 {[%clk 0:02:34.1]} 14... Qxa8 {[%clk 0:02:04.8]} 15. Ncd5 {[%clk
0:02:33.6]} 15... Nxd5 {[%clk 0:02:01.6]} 16. Nxd5 {[%clk 0:02:30.4]} 16... Be6
{[%clk 0:02:01.7]} 17. Nc7+ {[%clk 0:02:30.4]} 1-0

[Event "Late-Titled-Tuesday-Blitz-February-20-2024"]
[Site "Chess.com"]
[Date "2024.02.20"]
[Round "11"]
[White "Grischuk"]
[Black "stollenmonster"]
[Result "1-0"]
[WhiteElo "3050"]
[BlackElo "2859"]
[TimeControl "180+1"]
[EndTime "16:00:07 PST"]
[Termination "Grischuk won by resignation"]

1. d4 {[%clk 0:02:59.9]} 1... Nf6 {[%clk 0:02:59.6]} 2. c4 {[%clk 0:02:59.6]}
2... e6 {[%clk 0:03:00.1]} 3. Bg5 {[%clk 0:02:59.7]} 3... d5 {[%clk 0:03:01]} 4.
e3 {[%clk 0:02:59.5]} 4... Be7 {[%clk 0:03:01.2]} 5. Nc3 {[%clk 0:02:59.7]} 5...
Ne4 {[%clk 0:03:01.5]} 6. Bxe7 {[%clk 0:02:56.8]} 6... Qxe7 {[%clk 0:03:02.4]}
7. cxd5 {[%clk 0:02:32]} 7... Nxc3 {[%clk 0:03:01.7]} 8. bxc3 {[%clk 0:02:32.9]}
8... exd5 {[%clk 0:03:02.1]} 9. Qb3 {[%clk 0:02:33.6]} 9... c6 {[%clk
0:03:01.9]} 10. c4 {[%clk 0:02:33.8]} 10... dxc4 {[%clk 0:03:02.8]} 11. Bxc4
{[%clk 0:02:33.2]} 11... O-O {[%clk 0:02:56.1]} 12. Ne2 {[%clk 0:02:24.9]} 12...
Nd7 {[%clk 0:02:53.5]} 13. O-O {[%clk 0:02:24.6]} 13... Nb6 {[%clk 0:02:54.1]}
14. Bd3 {[%clk 0:02:25]} 14... Be6 {[%clk 0:02:52.4]} 15. Qc2 {[%clk 0:02:24.9]}
15... h6 {[%clk 0:02:51.9]} 16. Nf4 {[%clk 0:02:23.9]} 16... Nd5 {[%clk
0:02:46.3]} 17. Nxe6 {[%clk 0:02:24]} 17... Qxe6 {[%clk 0:02:47.2]} 18. Rab1
{[%clk 0:02:18.7]} 18... Rab8 {[%clk 0:02:45.7]} 19. Rfc1 {[%clk 0:02:11.9]}
19... Rfc8 {[%clk 0:02:43.3]} 20. Bf5 {[%clk 0:02:10.9]} 20... Qe7 {[%clk
0:02:37.6]} 21. Bxc8 {[%clk 0:02:10.7]} 21... Rxc8 {[%clk 0:02:38.5]} 22. Qc5
{[%clk 0:02:10.5]} 1-0

[Event "Late-Titled-Tuesday-Blitz-February-20-2024"]
[Site "Chess.com"]
[Date "2024.02.20"]
[Round "11"]
[White "giomar27"]
[Black "PawnEatingZombie"]
[Result "1-0"]
[WhiteElo "2427"]
[BlackElo "2204"]
[TimeControl "180+1"]
[EndTime "16:00:18 PST"]
[Termination "giomar27 won by resignation"]

1. e4 {[%clk 0:03:00.9]} 1... d6 {[%clk 0:02:59.6]} 2. d4 {[%clk 0:03:00.8]}
2... Nf6 {[%clk 0:03:00]} 3. Nc3 {[%clk 0:03:01.4]} 3... e5 {[%clk 0:03:00.3]}
4. Nf3 {[%clk 0:03:01.4]} 4... Nbd7 {[%clk 0:02:59.1]} 5. Bc4 {[%clk 0:03:01.9]}
5... Be7 {[%clk 0:02:58.9]} 6. a4 {[%clk 0:03:02.2]} 6... c6 {[%clk 0:02:50.7]}
7. O-O {[%clk 0:03:02.3]} 7... a5 {[%clk 0:02:50.1]} 8. h3 {[%clk 0:03:02.6]}
8... O-O {[%clk 0:02:49.8]} 9. Re1 {[%clk 0:03:03.2]} 9... h6 {[%clk 0:02:50]}
10. b3 {[%clk 0:03:02.7]} 10... Re8 {[%clk 0:02:44.7]} 11. d5 {[%clk 0:03:03]}
11... Nb6 {[%clk 0:02:42.3]} 12. Bf1 {[%clk 0:03:02.6]} 12... cxd5 {[%clk
0:02:36.6]} 13. exd5 {[%clk 0:03:02.5]} 13... Nh7 {[%clk 0:02:27.2]} 14. Be3
{[%clk 0:03:01.1]} 14... Nd7 {[%clk 0:02:21.8]} 15. Nd2 {[%clk 0:03:00.4]} 15...
f5 {[%clk 0:02:17.1]} 16. Nc4 {[%clk 0:02:56.8]} 16... Rf8 {[%clk 0:02:11.9]}
17. Nb5 {[%clk 0:02:56.2]} 17... Ndf6 {[%clk 0:01:52.8]} 18. Bb6 {[%clk
0:02:55.7]} 18... Qd7 {[%clk 0:01:48.8]} 19. Nc7 {[%clk 0:02:55.9]} 19... Rb8
{[%clk 0:01:46.3]} 20. Nxa5 {[%clk 0:02:55.9]} 20... Ng5 {[%clk 0:01:38.1]} 21.
Bb5 {[%clk 0:02:55.8]} 1-0

[Event "Late-Titled-Tuesday-Blitz-February-20-2024"]
[Site "Chess.com"]
[Date "2024.02.20"]
[Round "11"]
[White "Statham_01"]
[Black "ContrVersia"]
[Result "1-0"]
[WhiteElo "2622"]
[BlackElo "2842"]
[TimeControl "180+1"]
[EndTime "16:00:31 PST"]
[Termination "Statham_01 won by resignation"]

1. Nc3 {[%clk 0:03:00.9]} 1... Nf6 {[%clk 0:02:57.9]} 2. e4 {[%clk 0:03:00]}
2... e5 {[%clk 0:02:57.9]} 3. Nf3 {[%clk 0:02:59.6]} 3... Nc6 {[%clk 0:02:57.7]}
4. Be2 {[%clk 0:02:59.9]} 4... Bb4 {[%clk 0:02:49.4]} 5. Nd5 {[%clk 0:02:59.3]}
5... Bc5 {[%clk 0:02:48.5]} 6. c3 {[%clk 0:02:59.7]} 6... Nxe4 {[%clk
0:02:45.6]} 7. d4 {[%clk 0:02:58.9]} 7... exd4 {[%clk 0:02:45.5]} 8. Bd3 {[%clk
0:02:56.9]} 8... Nf6 {[%clk 0:02:32.8]} 9. Bg5 {[%clk 0:02:51.6]} 9... Be7
{[%clk 0:02:32.9]} 10. Bxf6 {[%clk 0:02:48.5]} 10... Bxf6 {[%clk 0:02:32.9]} 11.
Qe2+ {[%clk 0:02:46.3]} 11... Kf8 {[%clk 0:02:33]} 12. O-O {[%clk 0:02:31.6]}
12... dxc3 {[%clk 0:02:33]} 13. Rfe1 {[%clk 0:02:22.3]} 13... g6 {[%clk
0:02:23.4]} 14. bxc3 {[%clk 0:02:06.3]} 14... d6 {[%clk 0:02:23.3]} 15. Rab1
{[%clk 0:02:03.8]} 15... Bg7 {[%clk 0:02:15.4]} 16. Nxc7 {[%clk 0:01:54.5]}
16... Rb8 {[%clk 0:02:15]} 17. Qe8+ {[%clk 0:01:53.7]} 1-0

[Event "Late-Titled-Tuesday-Blitz-February-20-2024"]
[Site "Chess.com"]
[Date "2024.02.20"]
[Round "11"]
[White "Shankland"]
[Black "Alex_Sahakyan2006"]
[Result "0-1"]
[WhiteElo "2922"]
[BlackElo "2848"]
[TimeControl "180+1"]
[EndTime "16:02:17 PST"]
[Termination "Alex_Sahakyan2006 won by resignation"]

1. c4 {[%clk 0:03:00.9]} 1... Nf6 {[%clk 0:02:51.8]} 2. g3 {[%clk 0:03:00.2]}
2... g6 {[%clk 0:02:44.3]} 3. Bg2 {[%clk 0:03:00.3]} 3... Bg7 {[%clk 0:02:44.9]}
4. Nc3 {[%clk 0:02:59.3]} 4... O-O {[%clk 0:02:45.3]} 5. e4 {[%clk 0:02:58.2]}
5... e5 {[%clk 0:02:43.9]} 6. Nge2 {[%clk 0:02:58.3]} 6... Nc6 {[%clk
0:02:42.6]} 7. O-O {[%clk 0:02:58.3]} 7... d6 {[%clk 0:02:41.1]} 8. d3 {[%clk
0:02:58.6]} 8... a6 {[%clk 0:02:33]} 9. f4 {[%clk 0:02:56.4]} 9... b5 {[%clk
0:02:19.5]} 10. f5 {[%clk 0:02:56]} 10... Nd4 {[%clk 0:01:46.7]} 11. h3 {[%clk
0:02:50.8]} 11... Nd7 {[%clk 0:01:37]} 12. Nd5 {[%clk 0:02:47.9]} 12... c6
{[%clk 0:01:33.8]} 13. Ne3 {[%clk 0:02:46.8]} 13... Nc5 {[%clk 0:01:28.8]} 14.
Kh2 {[%clk 0:02:39.4]} 14... bxc4 {[%clk 0:01:16.8]} 15. dxc4 {[%clk 0:02:38]}
15... Rb8 {[%clk 0:01:15.1]} 16. b3 {[%clk 0:02:35.6]} 16... a5 {[%clk
0:01:11.8]} 17. Nxd4 {[%clk 0:02:35.7]} 17... exd4 {[%clk 0:01:11.9]} 18. Ng4
{[%clk 0:02:36.4]} 18... d3 {[%clk 0:01:04.3]} 19. f6 {[%clk 0:02:34.9]} 19...
Bxg4 {[%clk 0:01:03.9]} 20. Qxg4 {[%clk 0:02:30.1]} 20... Bxf6 {[%clk
0:01:03.9]} 21. Rb1 {[%clk 0:02:30.3]} 21... Be5 {[%clk 0:00:51.2]} 22. Be3
{[%clk 0:02:29.7]} 22... h5 {[%clk 0:00:46.6]} 23. Qf3 {[%clk 0:02:29.8]} 23...
h4 {[%clk 0:00:46.1]} 24. Bf4 {[%clk 0:02:29.7]} 24... hxg3+ {[%clk 0:00:44.9]}
25. Qxg3 {[%clk 0:02:30]} 25... Qe7 {[%clk 0:00:45.4]} 26. Rf3 {[%clk 0:02:19]}
26... Nxe4 {[%clk 0:00:38.9]} 27. Qg4 {[%clk 0:02:19]} 27... Nd2 {[%clk
0:00:34.9]} 0-1

[Event "Late-Titled-Tuesday-Blitz-February-20-2024"]
[Site "Chess.com"]
[Date "2024.02.20"]
[Round "11"]
[White "Alphafischer2019"]
[Black "NLLO777"]
[Result "1-0"]
[WhiteElo "2682"]
[BlackElo "2539"]
[TimeControl "180+1"]
[EndTime "16:02:24 PST"]
[Termination "Alphafischer2019 won by resignation"]

1. Nf3 {[%clk 0:03:00.9]} 1... Nf6 {[%clk 0:02:59.4]} 2. g3 {[%clk 0:03:00.5]}
2... b6 {[%clk 0:02:59.9]} 3. Bg2 {[%clk 0:03:00.5]} 3... Bb7 {[%clk 0:03:00.8]}
4. b3 {[%clk 0:03:00.5]} 4... c5 {[%clk 0:02:57.2]} 5. Bb2 {[%clk 0:03:00.1]}
5... e6 {[%clk 0:02:52.7]} 6. c4 {[%clk 0:02:59.8]} 6... Be7 {[%clk 0:02:47.8]}
7. O-O {[%clk 0:03:00.4]} 7... O-O {[%clk 0:02:47.2]} 8. Nc3 {[%clk 0:03:01.1]}
8... d6 {[%clk 0:02:45.5]} 9. Re1 {[%clk 0:03:00.5]} 9... a6 {[%clk 0:02:43.8]}
10. e4 {[%clk 0:03:00.5]} 10... Nc6 {[%clk 0:02:42.6]} 11. d4 {[%clk 0:03:00.1]}
11... cxd4 {[%clk 0:02:42]} 12. Nxd4 {[%clk 0:03:01]} 12... Qc7 {[%clk
0:02:38.1]} 13. Rc1 {[%clk 0:02:55.1]} 13... Nxd4 {[%clk 0:02:37.2]} 14. Qxd4
{[%clk 0:02:54.9]} 14... Rac8 {[%clk 0:02:32.8]} 15. Na4 {[%clk 0:02:50.5]}
15... Bc6 {[%clk 0:02:15.8]} 16. Nxb6 {[%clk 0:02:32.6]} 16... e5 {[%clk
0:01:51]} 17. Qe3 {[%clk 0:02:32]} 17... Ng4 {[%clk 0:01:50.9]} 18. Qe2 {[%clk
0:02:31.6]} 18... Qxb6 {[%clk 0:01:40]} 19. Qxg4 {[%clk 0:02:31]} 19... a5
{[%clk 0:01:40.1]} 20. c5 {[%clk 0:02:26.8]} 20... Qb7 {[%clk 0:01:18.2]} 21.
cxd6 {[%clk 0:02:25.5]} 21... Bxd6 {[%clk 0:01:19.1]} 22. Red1 {[%clk
0:02:23.4]} 22... Rfd8 {[%clk 0:01:15.2]} 23. h4 {[%clk 0:02:16.3]} 23... a4
{[%clk 0:01:10.1]} 24. h5 {[%clk 0:01:55.6]} 24... h6 {[%clk 0:01:09.1]} 25.
Rxd6 {[%clk 0:01:52.4]} 25... Rxd6 {[%clk 0:00:57.1]} 26. Bxe5 {[%clk
0:01:51.3]} 1-0

[Event "Late-Titled-Tuesday-Blitz-February-20-2024"]
[Site "Chess.com"]
[Date "2024.02.20"]
[Round "11"]
[White "dennisodessa"]
[Black "DonJuanEGenaro"]
[Result "1-0"]
[WhiteElo "2587"]
[BlackElo "2172"]
[TimeControl "180+1"]
[EndTime "16:03:09 PST"]
[Termination "dennisodessa won by resignation"]

1. d4 {[%clk 0:03:00.9]} 1... Nf6 {[%clk 0:02:47.8]} 2. c4 {[%clk 0:03:00.1]}
2... c5 {[%clk 0:02:47.5]} 3. d5 {[%clk 0:02:59.2]} 3... e6 {[%clk 0:02:46.8]}
4. Nc3 {[%clk 0:02:58.4]} 4... exd5 {[%clk 0:02:46.9]} 5. cxd5 {[%clk
0:02:59.3]} 5... d6 {[%clk 0:02:47.3]} 6. e4 {[%clk 0:02:57]} 6... g6 {[%clk
0:02:47.4]} 7. h3 {[%clk 0:02:57.6]} 7... Bg7 {[%clk 0:02:47.3]} 8. Nf3 {[%clk
0:02:58.4]} 8... O-O {[%clk 0:02:46.4]} 9. Bd3 {[%clk 0:02:59]} 9... Nbd7 {[%clk
0:02:45.3]} 10. O-O {[%clk 0:02:57.9]} 10... Ne5 {[%clk 0:02:44.4]} 11. Nxe5
{[%clk 0:02:54.9]} 11... dxe5 {[%clk 0:02:44.3]} 12. f4 {[%clk 0:02:51.8]} 12...
exf4 {[%clk 0:02:28]} 13. Bxf4 {[%clk 0:02:52.7]} 13... Nd7 {[%clk 0:02:26.8]}
14. Bd6 {[%clk 0:02:39.9]} 14... Re8 {[%clk 0:02:24.5]} 15. Qf3 {[%clk
0:02:40.5]} 15... Qf6 {[%clk 0:02:24.3]} 16. Qxf6 {[%clk 0:02:33.7]} 16... Bxf6
{[%clk 0:02:22]} 17. Nb5 {[%clk 0:02:33.6]} 17... Ne5 {[%clk 0:02:09.1]} 18.
Rxf6 {[%clk 0:02:25.4]} 18... Nxd3 {[%clk 0:02:08.7]} 19. Nc7 {[%clk 0:02:26]}
19... Bd7 {[%clk 0:01:54.4]} 20. Nxa8 {[%clk 0:02:24.9]} 20... Rxa8 {[%clk
0:01:54.1]} 21. Raf1 {[%clk 0:02:20.5]} 21... Be8 {[%clk 0:01:53.4]} 22. e5
{[%clk 0:02:18.2]} 22... Rd8 {[%clk 0:01:30.3]} 23. b3 {[%clk 0:01:48.6]} 23...
b5 {[%clk 0:01:25.5]} 24. e6 {[%clk 0:01:28.1]} 24... fxe6 {[%clk 0:01:15.1]}
25. Rf8+ {[%clk 0:01:29]} 25... Kg7 {[%clk 0:01:14.4]} 26. Be7 {[%clk
0:01:29.9]} 26... Rc8 {[%clk 0:01:08.6]} 27. d6 {[%clk 0:01:27]} 27... Ne5
{[%clk 0:01:00.2]} 28. Rxe8 {[%clk 0:01:25.8]} 28... Rxe8 {[%clk 0:00:58]} 29.
Bf6+ {[%clk 0:01:26.1]} 29... Kg8 {[%clk 0:00:57.4]} 30. Bxe5 {[%clk 0:01:27]}
30... Rd8 {[%clk 0:00:54.8]} 31. Rc1 {[%clk 0:01:24.3]} 31... Rc8 {[%clk
0:00:47.6]} 32. Bf6 {[%clk 0:01:24.4]} 1-0

[Event "Late-Titled-Tuesday-Blitz-February-20-2024"]
[Site "Chess.com"]
[Date "2024.02.20"]
[Round "11"]
[White "el008"]
[Black "Inepton_Fermion"]
[Result "0-1"]
[WhiteElo "2513"]
[BlackElo "2407"]
[TimeControl "180+1"]
[EndTime "16:03:23 PST"]
[Termination "Inepton_Fermion won by checkmate"]

1. e4 {[%clk 0:03:00.9]} 1... c5 {[%clk 0:02:59.9]} 2. Nf3 {[%clk 0:02:56.1]}
2... e6 {[%clk 0:02:55.4]} 3. d4 {[%clk 0:02:56.7]} 3... cxd4 {[%clk 0:02:56.3]}
4. Nxd4 {[%clk 0:02:57.5]} 4... Nc6 {[%clk 0:02:56.8]} 5. Ne2 {[%clk 0:02:57.4]}
5... Nf6 {[%clk 0:02:54.9]} 6. Nbc3 {[%clk 0:02:57.9]} 6... a6 {[%clk
0:02:52.3]} 7. g3 {[%clk 0:02:57.9]} 7... b5 {[%clk 0:02:51.7]} 8. a3 {[%clk
0:02:58.2]} 8... Bb7 {[%clk 0:02:47.8]} 9. Bg2 {[%clk 0:02:58.1]} 9... Qc7
{[%clk 0:02:42.6]} 10. O-O {[%clk 0:02:58.5]} 10... Be7 {[%clk 0:02:42.4]} 11.
Be3 {[%clk 0:02:56.8]} 11... O-O {[%clk 0:02:42.2]} 12. h3 {[%clk 0:02:57.2]}
12... Ne5 {[%clk 0:02:39.5]} 13. f4 {[%clk 0:02:56.5]} 13... Nc4 {[%clk
0:02:39.6]} 14. Bc1 {[%clk 0:02:57.2]} 14... Qb6+ {[%clk 0:02:24.4]} 15. Kh2
{[%clk 0:02:57.3]} 15... Ne3 {[%clk 0:02:25]} 16. Bxe3 {[%clk 0:02:57.2]} 16...
Qxe3 {[%clk 0:02:25.9]} 17. Nd4 {[%clk 0:02:52.4]} 17... Bc5 {[%clk 0:01:47]}
18. Nb3 {[%clk 0:02:52.1]} 18... Ba7 {[%clk 0:01:47.1]} 19. Re1 {[%clk
0:02:52.1]} 19... Qf2 {[%clk 0:01:41.1]} 20. Re2 {[%clk 0:02:51.9]} 20... Qb6
{[%clk 0:01:40.8]} 21. e5 {[%clk 0:02:52.1]} 21... Bxg2 {[%clk 0:01:10.5]} 22.
Rxg2 {[%clk 0:02:53]} 22... Ne8 {[%clk 0:01:10]} 23. Ne4 {[%clk 0:02:53.7]}
23... Qc6 {[%clk 0:01:06.4]} 24. Qd3 {[%clk 0:02:52.8]} 24... f5 {[%clk
0:01:00.9]} 25. Ng5 {[%clk 0:02:51.1]} 25... Nc7 {[%clk 0:00:53.4]} 26. Rd1
{[%clk 0:02:49.6]} 26... Nd5 {[%clk 0:00:53.7]} 27. Rgd2 {[%clk 0:02:46]} 27...
h6 {[%clk 0:00:47]} 28. Nf3 {[%clk 0:02:46.4]} 28... Ne3 {[%clk 0:00:47.6]} 29.
Re2 {[%clk 0:02:46.2]} 29... Qxf3 {[%clk 0:00:47.3]} 30. Rg1 {[%clk 0:02:44.2]}
30... Nf1+ {[%clk 0:00:45.9]} 31. Rxf1 {[%clk 0:02:43.5]} 31... Qxf1 {[%clk
0:00:46.5]} 32. Rg2 {[%clk 0:02:43.7]} 32... Qxd3 {[%clk 0:00:43.8]} 33. cxd3
{[%clk 0:02:44.6]} 33... Rac8 {[%clk 0:00:43.4]} 34. h4 {[%clk 0:02:43.6]} 34...
h5 {[%clk 0:00:31.7]} 35. Re2 {[%clk 0:02:44.1]} 35... Rc7 {[%clk 0:00:31.9]}
36. Kg2 {[%clk 0:02:44.7]} 36... Rfc8 {[%clk 0:00:32.4]} 37. Kf3 {[%clk
0:02:45.4]} 37... Rc2 {[%clk 0:00:33]} 38. Nd2 {[%clk 0:02:46]} 38... Rxb2
{[%clk 0:00:32.7]} 39. Nf1 {[%clk 0:02:44.9]} 39... Rxe2 {[%clk 0:00:32.3]} 40.
Kxe2 {[%clk 0:02:45.8]} 40... Rc2+ {[%clk 0:00:32.6]} 41. Kd1 {[%clk 0:02:46.6]}
41... Ra2 {[%clk 0:00:33.5]} 42. Nd2 {[%clk 0:02:46.9]} 42... Rxa3 {[%clk
0:00:33.8]} 43. Ke2 {[%clk 0:02:47.4]} 43... Ra1 {[%clk 0:00:34]} 44. Nb3 {[%clk
0:02:47.3]} 44... Rg1 {[%clk 0:00:32.8]} 45. Kf3 {[%clk 0:02:47]} 45... Rb1
{[%clk 0:00:31.9]} 46. Na5 {[%clk 0:02:46.9]} 46... Bb6 {[%clk 0:00:31.6]} 47.
Nb7 {[%clk 0:02:47.2]} 47... a5 {[%clk 0:00:31.9]} 48. Nd6 {[%clk 0:02:47.3]}
48... a4 {[%clk 0:00:32.4]} 49. Nc8 {[%clk 0:02:48]} 49... Bc5 {[%clk 0:00:32]}
50. d4 {[%clk 0:02:48.7]} 50... Bxd4 {[%clk 0:00:30.3]} 51. Ne7+ {[%clk
0:02:49.4]} 51... Kf7 {[%clk 0:00:29.8]} 52. Nc8 {[%clk 0:02:50.3]} 52... Bc5
{[%clk 0:00:29.8]} 53. Ke2 {[%clk 0:02:50.7]} 53... Ke8 {[%clk 0:00:25.7]} 54.
g4 {[%clk 0:02:51.6]} 54... hxg4 {[%clk 0:00:24.5]} 55. h5 {[%clk 0:02:52]}
55... Kd8 {[%clk 0:00:24.7]} 56. h6 {[%clk 0:02:52.9]} 56... gxh6 {[%clk
0:00:24.7]} 57. Kd3 {[%clk 0:02:51.9]} 57... Kxc8 {[%clk 0:00:24.8]} 58. Kc2
{[%clk 0:02:52.8]} 58... Rb3 {[%clk 0:00:24.6]} 59. Kd2 {[%clk 0:02:53.7]} 59...
h5 {[%clk 0:00:24.9]} 60. Kc2 {[%clk 0:02:54.6]} 60... h4 {[%clk 0:00:25.8]} 61.
Kd2 {[%clk 0:02:55.4]} 61... h3 {[%clk 0:00:26.7]} 62. Ke2 {[%clk 0:02:56.3]}
62... Kd8 {[%clk 0:00:25.3]} 63. Kd2 {[%clk 0:02:57.2]} 63... Ke7 {[%clk
0:00:26.2]} 64. Kc2 {[%clk 0:02:58.1]} 64... Kf7 {[%clk 0:00:27.1]} 65. Kd2
{[%clk 0:02:58.7]} 65... Kg6 {[%clk 0:00:28]} 66. Kc2 {[%clk 0:02:59.6]} 66...
Kh5 {[%clk 0:00:28.9]} 67. Kd2 {[%clk 0:03:00.5]} 67... Kh4 {[%clk 0:00:29.7]}
68. Kc2 {[%clk 0:03:01.4]} 68... Kg3 {[%clk 0:00:30.6]} 69. Kd2 {[%clk
0:03:02.3]} 69... Kxf4 {[%clk 0:00:31.5]} 70. Kc2 {[%clk 0:03:03.2]} 70... Kxe5
{[%clk 0:00:32.4]} 71. Kd2 {[%clk 0:03:04.1]} 71... f4 {[%clk 0:00:32.9]} 72.
Kc2 {[%clk 0:03:05]} 72... Kf5 {[%clk 0:00:33.8]} 73. Kd2 {[%clk 0:03:05.9]}
73... Kg5 {[%clk 0:00:34.3]} 74. Kc2 {[%clk 0:03:06.8]} 74... Kh4 {[%clk
0:00:34.9]} 75. Kd2 {[%clk 0:03:07.7]} 75... g3 {[%clk 0:00:35.8]} 76. Kc2
{[%clk 0:03:08.6]} 76... h2 {[%clk 0:00:36.7]} 77. Kd2 {[%clk 0:03:09.5]} 77...
e5 {[%clk 0:00:37.6]} 78. Kc2 {[%clk 0:03:10.4]} 78... d5 {[%clk 0:00:38.5]} 79.
Kd2 {[%clk 0:03:11.3]} 79... e4 {[%clk 0:00:39.4]} 80. Kc2 {[%clk 0:03:12.2]}
80... d4 {[%clk 0:00:40]} 81. Kd2 {[%clk 0:03:13.1]} 81... f3 {[%clk 0:00:40.4]}
82. Kc2 {[%clk 0:03:14]} 82... e3 {[%clk 0:00:39.1]} 83. Kc1 {[%clk 0:03:14.3]}
83... d3 {[%clk 0:00:39.2]} 84. Kd1 {[%clk 0:03:14.9]} 84... g2 {[%clk
0:00:39.6]} 85. Kc1 {[%clk 0:03:15.3]} 85... f2 {[%clk 0:00:40]} 86. Kd1 {[%clk
0:03:16.2]} 86... Rb2 {[%clk 0:00:36.2]} 87. Kc1 {[%clk 0:03:17.1]} 87... a3
{[%clk 0:00:36.7]} 88. Kd1 {[%clk 0:03:17.5]} 88... b4 {[%clk 0:00:37.3]} 89.
Kc1 {[%clk 0:03:18.2]} 89... b3 {[%clk 0:00:37.9]} 90. Kd1 {[%clk 0:03:19.1]}
90... Bd4 {[%clk 0:00:38.4]} 91. Kc1 {[%clk 0:03:20]} 91... Kg3 {[%clk 0:00:39]}
92. Kd1 {[%clk 0:03:20.9]} 92... h1=Q# {[%clk 0:00:30.3]} 0-1

[Event "Late-Titled-Tuesday-Blitz-February-20-2024"]
[Site "Chess.com"]
[Date "2024.02.20"]
[Round "11"]
[White "Laico"]
[Black "Navyblue1"]
[Result "1-0"]
[WhiteElo "2377"]
[BlackElo "2216"]
[TimeControl "180+1"]
[EndTime "16:03:41 PST"]
[Termination "Laico won by checkmate"]

1. e4 {[%clk 0:03:00.9]} 1... c5 {[%clk 0:02:55.3]} 2. Nc3 {[%clk 0:03:00]} 2...
d6 {[%clk 0:02:51.7]} 3. f4 {[%clk 0:03:00.9]} 3... e5 {[%clk 0:02:41.2]} 4. Nf3
{[%clk 0:02:59]} 4... exf4 {[%clk 0:02:35.5]} 5. d4 {[%clk 0:02:59.2]} 5... cxd4
{[%clk 0:02:34.2]} 6. Qxd4 {[%clk 0:03:00.1]} 6... Nc6 {[%clk 0:02:31.6]} 7. Bb5
{[%clk 0:03:00.6]} 7... Bd7 {[%clk 0:02:29.2]} 8. Bxc6 {[%clk 0:03:00.6]} 8...
bxc6 {[%clk 0:02:28.3]} 9. Bxf4 {[%clk 0:03:01.5]} 9... Qf6 {[%clk 0:02:13.4]}
10. e5 {[%clk 0:02:57.5]} 10... dxe5 {[%clk 0:02:05.8]} 11. Bxe5 {[%clk
0:02:58.4]} 11... Qg6 {[%clk 0:01:58.7]} 12. O-O-O {[%clk 0:02:55.4]} 12... Be6
{[%clk 0:01:51]} 13. Rhe1 {[%clk 0:02:30.2]} 13... Ne7 {[%clk 0:01:47.6]} 14.
Bc7 {[%clk 0:02:19.6]} 14... Nd5 {[%clk 0:01:42.6]} 15. Nxd5 {[%clk 0:02:19.4]}
15... cxd5 {[%clk 0:01:37.4]} 16. Qxd5 {[%clk 0:02:16.6]} 16... Rc8 {[%clk
0:01:34]} 17. Qc6+ {[%clk 0:01:43]} 17... Ke7 {[%clk 0:01:25.5]} 18. Qd6+ {[%clk
0:01:41.9]} 18... Ke8 {[%clk 0:01:25.1]} 19. Qc6+ {[%clk 0:01:35.2]} 19... Ke7
{[%clk 0:01:25.2]} 20. Qd7+ {[%clk 0:01:08.2]} 20... Kf6 {[%clk 0:01:19.5]} 21.
Bd8+ {[%clk 0:01:03]} 21... Kf5 {[%clk 0:01:17.7]} 22. Re5+ {[%clk 0:00:49]}
22... Kg4 {[%clk 0:01:15.7]} 23. Qxe6+ {[%clk 0:00:02.3]} 23... fxe6 {[%clk
0:01:11.7]} 24. Rd4+ {[%clk 0:00:02.6]} 24... Qe4 {[%clk 0:01:09.4]} 25. Rdxe4#
{[%clk 0:00:01.9]} 1-0